fUSD/lending_fUSD_20251206
["ID","MTS","AMOUNT","RATE_DAILY","PERIOD"]
[396563835,1765051865161,-652.71,0.00016986,2]
[396563836,1765051865170,-500.0,0.00016986,2]
[396563837,1765051865179,-500.0,0.00016986,2]
[396563838,1765051865188,-500.0,0.00016986,2]
[396563839,1765051865197,-185.335598,0.00016986,2]
[396563840,1765051865207,-185.335598,0.00016986,2]
[396563841,1765051865216,-500.0,0.00016986,2]
[396563842,1765051865226,-500.0,0.00016986,2]
[396563843,1765051865235,-500.0,0.00016986,2]
[396563844,1765051865246,-500.0,0.00016986,2]
[396563845,1765051865256,-185.335598,0.00016986,2]
[396563846,1765051865265,-185.335598,0.00016986,2]
[396563847,1765051865275,-500.0,0.00016986,2]
[396563848,1765051865286,-185.335598,0.00016986,2]
[396563849,1765051865298,-185.335598,0.00016986,2]
[396563850,1765051865307,-500.0,0.00016986,2]
[396563851,1765051865316,-1685.7,0.00016986,2]
[396563852,1765051865327,-151.0,0.00016986,2]
[396563853,1765051865336,-185.335598,0.00016986,2]
[396563854,1765051865346,-208.542286,0.00016986,2]
[396563855,1765051865355,-185.33559,0.00016986,2]
[396563856,1765051865365,-3055.83,0.00016986,2]
[396563857,1765051865374,-205.142673,0.00016986,2]
[396563858,1765051865384,-205.142673,0.00016986,2]
[396563859,1765051865393,-500.0,0.00016986,2]
[396563860,1765051865403,-205.142673,0.00016986,2]
[396563861,1765051865413,-205.142673,0.00016986,2]
[396563862,1765051865423,-1883.63,0.00016986,2]
[396563863,1765051865432,-205.142673,0.00016986,2]
[396563864,1765051865442,-205.142673,0.00016986,2]
[396563865,1765051865451,-1997.2,0.00016986,2]
[396563866,1765051865466,-500.0,0.00016986,2]
[396563867,1765051865476,-205.142673,0.00016986,2]
[396563868,1765051865485,-205.14268199,0.00016986,2]
[396563869,1765051865495,-500.0,0.00016986,2]
[396563870,1765051865504,-500.0,0.00016986,2]
[396563871,1765051865514,-700.62,0.00016986,2]
[396563872,1765051865525,-500.0,0.00016986,2]
[396563873,1765051865535,-500.0,0.00016986,2]
[396563874,1765051865544,-500.0,0.00016986,2]
[396563875,1765051865553,-500.0,0.00016986,2]
[396563876,1765051865563,-500.0,0.00016986,2]
[396563877,1765051865572,-500.0,0.00016986,2]
[396563878,1765051865581,-514.89,0.00016986,2]
[396563879,1765051865590,-500.0,0.00016986,2]
[396563880,1765051865599,-1292.77,0.00016986,2]
[396563881,1765051865612,-500.0,0.00016986,2]
[396563882,1765051865622,-821.21,0.00016986,2]
[396563883,1765051865632,-500.0,0.00016986,2]
[396563884,1765051865642,-500.0,0.00016986,2]
[396563885,1765051865651,-500.0,0.00016986,2]
[396563886,1765051865661,-500.0,0.00016986,2]
[396563887,1765051865671,-500.0,0.00016986,2]
[396563888,1765051865681,-500.0,0.00016986,2]
[396563889,1765051865691,-500.0,0.00016986,2]
[396563890,1765051865700,-500.0,0.00016986,2]
[396563891,1765051865709,-500.0,0.00016986,2]
[396563892,1765051865719,-500.0,0.00016986,2]
[396563893,1765051865728,-500.0,0.00016986,2]
[396563894,1765051865738,-500.0,0.00016986,2]
[396563895,1765051865748,-500.0,0.00016986,2]
[396563896,1765051865757,-500.0,0.00016986,2]
[396563897,1765051865766,-569.23855885,0.00016986,2]
[396563898,1765051865779,-500.0,0.00016986,2]
[396563899,1765051865788,-500.0,0.00016986,2]
[396563900,1765051865798,-2279.64,0.00016986,2]
[396563901,1765051865807,-533.75,0.00016986,2]
[396563902,1765051865817,-500.0,0.00016986,2]
[396563903,1765051865827,-500.0,0.00016986,2]
[396563904,1765051865836,-500.0,0.00016986,2]
[396563905,1765051865845,-500.0,0.00016986,2]
[396563906,1765051865855,-1926.42,0.00016986,2]
[396563907,1765051865864,-415.90305195,0.00016986,2]
[396563908,1765051865873,-500.0,0.00016986,2]
[396563909,1765051865882,-2073.6,0.00016986,2]
[396563910,1765051865892,-500.0,0.00016986,2]
[396563911,1765051865901,-500.0,0.00016986,2]
[396563913,1765051865910,-500.0,0.00016986,2]
[396563914,1765051865920,-500.0,0.00016986,2]
[396563915,1765051865929,-500.0,0.00016986,2]
[396563916,1765051865938,-500.0,0.00016986,2]
[396563917,1765051865947,-2150.07,0.00016986,2]
[396563918,1765051865958,-1953.6,0.00016986,2]
[396563919,1765051865969,-576.38,0.00016986,2]
[396563920,1765051865979,-500.0,0.00016986,2]
[396563921,1765051865988,-500.0,0.00016986,2]
[396563922,1765051865997,-500.0,0.00016986,2]
[396563923,1765051866006,-500.0,0.00016986,2]
[396563924,1765051866015,-500.0,0.00016986,2]
[396563925,1765051866027,-500.0,0.00016986,2]
[396563926,1765051866036,-2328.67,0.00016986,2]
[396563927,1765051866048,-1386.35,0.00016986,2]
[396563928,1765051866057,-719.31,0.00016986,2]
[396563929,1765051866067,-500.0,0.00016986,2]
[396563930,1765051866076,-500.0,0.00016986,2]
[396563931,1765051866085,-500.0,0.00016986,2]
[396563932,1765051866095,-500.0,0.00016986,2]
[396563933,1765051866103,-500.0,0.00016986,2]
[396563934,1765051866113,-500.0,0.00016986,2]
[396563935,1765051866122,-4161.6,0.00016986,2]
[396563936,1765051866131,-500.0,0.00016986,2]
[396563937,1765051866140,-500.0,0.00016986,2]
[396563938,1765051866150,-500.0,0.00016986,2]
[396563939,1765051866160,-500.0,0.00016986,2]
[396563940,1765051866170,-500.0,0.00016986,2]
[396563941,1765051866179,-500.0,0.00016986,2]
[396563942,1765051866189,-500.0,0.00016986,2]
[396563943,1765051866198,-500.0,0.00016986,2]
[396563944,1765051866207,-679.88,0.00016986,2]
[396563945,1765051866217,-2166.08,0.00016986,2]
[396563946,1765051866226,-500.0,0.00016986,2]
[396563947,1765051866235,-500.0,0.00016986,2]
[396563948,1765051866244,-151.0,0.00016986,2]
[396563949,1765051866254,-500.0,0.00016986,2]
[396563950,1765051866263,-500.0,0.00016986,2]
[396563951,1765051866274,-500.0,0.00016986,2]
[396563952,1765051866283,-594.06,0.00016986,2]
[396563953,1765051866292,-571.84,0.00016986,2]
[396563954,1765051866302,-1274.89,0.00016986,2]
[396563955,1765051866311,-500.0,0.00016986,2]
[396563956,1765051866320,-500.0,0.00016986,2]
[396563957,1765051866329,-500.0,0.00016986,2]
[396563958,1765051866340,-592.61,0.00016986,2]
[396563959,1765051866349,-1837.3,0.00016986,2]
[396563960,1765051866359,-500.0,0.00016986,2]
[396563961,1765051866368,-527.15,0.00016986,2]
[396563962,1765051866378,-500.0,0.00016986,2]
[396563963,1765051866387,-500.0,0.00016986,2]
[396563964,1765051866397,-500.0,0.00016986,2]
[396563965,1765051866407,-500.0,0.00016986,2]
[396563966,1765051866416,-500.0,0.00016986,2]
[396563967,1765051866426,-175.2341061,0.00016986,2]
[396563968,1765051866435,-500.0,0.00016986,2]
[396563969,1765051866444,-500.0,0.00016986,2]
[396563970,1765051866453,-2415.43,0.00016986,2]
[396563971,1765051866463,-500.0,0.00016986,2]
[396563972,1765051866472,-540.54,0.00016986,2]
[396563973,1765051866482,-500.0,0.00016986,2]
[396563974,1765051866491,-585.02,0.00016986,2]
[396563975,1765051866500,-896.31,0.00016986,2]
[396563976,1765051866509,-500.0,0.00016986,2]
[396563977,1765051866520,-500.0,0.00016986,2]
[396563978,1765051866528,-500.0,0.00016986,2]
[396563979,1765051866538,-500.0,0.00016986,2]
[396563980,1765051866547,-1004.9,0.00016986,2]
[396563981,1765051866556,-500.0,0.00016986,2]
[396563982,1765051866565,-500.0,0.00016986,2]
[396563983,1765051866574,-500.0,0.00016986,2]
[396563984,1765051866584,-386.76,0.00016986,2]
[396563985,1765051866598,-500.0,0.00016986,2]
[396563986,1765051866611,-545.5,0.00016986,2]
[396563987,1765051866620,-1859.88,0.00016986,2]
[396563988,1765051866629,-1743.95,0.00016986,2]
[396563989,1765051866638,-500.0,0.00016986,2]
[396563990,1765051866647,-500.0,0.00016986,2]
[396563991,1765051866656,-500.0,0.00016986,2]
[396563992,1765051866665,-500.0,0.00016986,2]
[396563993,1765051866675,-500.0,0.00016986,2]
[396563994,1765051866684,-151.0,0.00016986,2]
[396563995,1765051866693,-500.0,0.00016986,2]
[396563996,1765051866702,-500.0,0.00016986,2]
[396563997,1765051866712,-151.0,0.00016986,2]
[396563998,1765051866721,-500.0,0.00016986,2]
[396563999,1765051866730,-500.0,0.00016986,2]
[396564000,1765051866739,-500.0,0.00016986,2]
[396564001,1765051866748,-500.0,0.00016986,2]
[396564002,1765051866757,-573.29,0.00016986,2]
[396564003,1765051866767,-569.27,0.00016986,2]
[396564004,1765051866777,-500.0,0.00016986,2]
[396564005,1765051866787,-500.0,0.00016986,2]
[396564006,1765051866796,-515.01,0.00016986,2]
[396564007,1765051866805,-500.0,0.00016986,2]
[396564008,1765051866814,-1750.2,0.00016986,2]
[396564009,1765051866823,-500.0,0.00016986,2]
[396564010,1765051866832,-500.0,0.00016986,2]
[396564011,1765051866841,-151.0,0.00016986,2]
[396564012,1765051866850,-517.48,0.00016986,2]
[396564013,1765051866859,-500.0,0.00016986,2]
[396564014,1765051866868,-151.0,0.00016986,2]
[396564015,1765051866877,-500.93,0.00016986,2]
[396564016,1765051866886,-1068.22,0.00016986,2]
[396564017,1765051866895,-500.0,0.00016986,2]
[396564018,1765051866904,-614.71,0.00016986,2]
[396564019,1765051866914,-1270.16,0.00016986,2]
[396564020,1765051866924,-251.41576039,0.00016986,2]
[396564021,1765051866933,-540.82,0.00016986,2]
[396564022,1765051866942,-2132.22,0.00016986,2]
[396564023,1765051866951,-500.0,0.00016986,2]
[396564024,1765051866960,-500.0,0.00016986,2]
[396564025,1765051866969,-500.0,0.00016986,2]
[396564026,1765051866978,-1079.45,0.00016986,2]
[396564027,1765051866988,-151.0,0.00016986,2]
[396564028,1765051866997,-151.0,0.00016986,2]
[396564029,1765051867007,-500.0,0.00016986,2]
[396564030,1765051867017,-500.0,0.00016986,2]
[396564031,1765051867027,-1943.73,0.00016986,2]
[396564032,1765051867036,-500.0,0.00016986,2]
[396564033,1765051867045,-554.89,0.00016986,2]
[396564034,1765051867054,-524.63,0.00016986,2]
[396564035,1765051867063,-500.0,0.00016986,2]
[396564036,1765051867073,-788.11,0.00016986,2]
[396564037,1765051867082,-500.0,0.00016986,2]
[396564038,1765051867091,-1735.71,0.00016986,2]
[396564039,1765051867101,-658.8,0.00016986,2]
[396564040,1765051867110,-188.64120579,0.00016986,2]
[396564041,1765051867119,-2661.15,0.00016986,2]
[396564042,1765051867128,-500.0,0.00016986,2]
[396564043,1765051867138,-500.0,0.00016986,2]
[396564044,1765051867147,-2003.71,0.00016986,2]
[396564045,1765051867157,-3701.02,0.00016986,2]
[396564046,1765051867166,-150.0,0.00016986,2]
[396564047,1765051867175,-1426.02,0.00016986,2]
[396564048,1765051867184,-500.0,0.00016986,2]
[396564049,1765051867194,-150.0,0.00016986,2]
[396564050,1765051867203,-500.0,0.00016986,2]
[396564051,1765051867212,-2183.56,0.00016986,2]
[396564052,1765051867222,-200.0,0.00016986,2]
[396564053,1765051867231,-500.0,0.00016986,2]
[396564054,1765051867240,-150.0,0.00016986,2]
[396564055,1765051867250,-500.0,0.00016986,2]
[396564056,1765051867260,-606.11,0.00016986,2]
[396564057,1765051867272,-500.0,0.00016986,2]
[396564058,1765051867288,-500.0,0.00016986,2]
[396564059,1765051867302,-500.0,0.00016986,2]
[396564060,1765051867312,-1923.84,0.00016986,2]
[396564061,1765051867321,-500.0,0.00016986,2]
[396564062,1765051867331,-1938.2,0.00016986,2]
[396564063,1765051867341,-500.0,0.00016986,2]
[396564064,1765051867351,-4231.07,0.00016986,2]
[396564065,1765051867360,-500.0,0.00016986,2]
[396564066,1765051867371,-2326.26,0.00016986,2]
[396564067,1765051867381,-546.32,0.00016986,2]
[396564068,1765051867391,-1525.04,0.00016986,2]
[396564069,1765051867401,-2041.53,0.00016986,2]
[396564070,1765051867411,-604.68,0.00016986,2]
[396564071,1765051867421,-500.0,0.00016986,2]
[396564072,1765051867431,-500.0,0.00016986,2]
[396564073,1765051867441,-500.08829758,0.00016986,2]
[396564074,1765051867451,-500.0,0.00016986,2]
[396564075,1765051867460,-1615.71,0.00016986,2]
[396564076,1765051867470,-1966.51,0.00016986,2]
[396564077,1765051867480,-798.11,0.00016986,2]
[396564078,1765051867490,-246.78496956,0.00016986,2]
[396564079,1765051867501,-6417.59,0.00016986,2]
[396564080,1765051867510,-500.0,0.00016986,2]
[396564081,1765051867520,-1909.86,0.00016986,2]
[396564082,1765051867531,-2100.33,0.00016986,2]
[396564083,1765051867541,-500.0,0.00016986,2]
[396564084,1765051867550,-500.0,0.00016986,2]
[396564085,1765051867560,-6996.55,0.00016986,2]
[396564086,1765051867569,-504.39199229,0.00016986,2]
[396564087,1765051867578,-500.0,0.00016986,2]
[396564088,1765051867588,-500.0,0.00016986,2]
[396564089,1765051867597,-1931.21,0.00016986,2]
[396564090,1765051867609,-500.0,0.00016986,2]
[396564091,1765051867619,-500.0,0.00016986,2]
[396564092,1765051867628,-500.0,0.00016986,2]
[396564093,1765051867637,-817.97,0.00016986,2]
[396564094,1765051867646,-500.0,0.00016986,2]
[396564095,1765051867656,-500.0,0.00016986,2]
[396564096,1765051867665,-151.0,0.00016986,2]
[396564097,1765051867675,-151.0,0.00016986,2]
[396564098,1765051867684,-2075.87,0.00016986,2]
[396564099,1765051867694,-533.77,0.00016986,2]
[396564100,1765051867704,-2327.84,0.00016986,2]
[396564101,1765051867713,-2083.67,0.00016986,2]
[396564102,1765051867723,-500.0,0.00016986,2]
[396564103,1765051867733,-503.77028415,0.00016986,2]
[396564104,1765051867743,-500.0,0.00016986,2]
[396564105,1765051867753,-2233.47,0.00016986,2]
[396564106,1765051867764,-500.0,0.00016986,2]
[396564107,1765051867775,-500.0,0.00016986,2]
[396564108,1765051867785,-500.0,0.00016986,2]
[396564109,1765051867794,-151.0,0.00016986,2]
[396564110,1765051867806,-1809.27,0.00016986,2]
[396564111,1765051867817,-500.0,0.00016986,2]
[396564112,1765051867827,-500.0,0.00016986,2]
[396564113,1765051867840,-992.41,0.00016986,2]
[396564114,1765051867850,-2265.78,0.00016986,2]
[396564115,1765051867860,-500.0,0.00016986,2]
[396564117,1765051867870,-500.0,0.00016986,2]
[396564118,1765051867879,-500.0,0.00016986,2]
[396564119,1765051867889,-1922.59,0.00016986,2]
[396564120,1765051867899,-500.0,0.00016986,2]
[396564121,1765051867910,-500.0,0.00016986,2]
[396564122,1765051867919,-1057.75,0.00016986,2]
[396564123,1765051867929,-2009.18,0.00016986,2]
[396564124,1765051867939,-523.86,0.00016986,2]
[396564125,1765051867948,-500.0,0.00016986,2]
[396564126,1765051867959,-1700.69,0.00016986,2]
[396564127,1765051867968,-2319.15,0.00016986,2]
[396564128,1765051867978,-500.0,0.00016986,2]
[396564129,1765051867987,-500.0,0.00016986,2]
[396564130,1765051867997,-676.63,0.00016986,2]
[396564131,1765051868007,-2223.46,0.00016986,2]
[396564132,1765051868017,-1841.07,0.00016986,2]
[396564133,1765051868027,-2240.3,0.00016986,2]
[396564134,1765051868037,-500.0,0.00016986,2]
[396564135,1765051868047,-500.0,0.00016986,2]
[396564136,1765051868056,-500.0,0.00016986,2]
[396564137,1765051868066,-1021.1,0.00016986,2]
[396564138,1765051868075,-1942.74,0.00016986,2]
[396564139,1765051868085,-500.0,0.00016986,2]
[396564140,1765051868095,-500.0,0.00016986,2]
[396564141,1765051868104,-500.0,0.00016986,2]
[396564142,1765051868115,-2422.59,0.00016986,2]
[396564143,1765051868129,-2267.89,0.00016986,2]
[396564144,1765051868139,-1810.2,0.00016986,2]
[396564145,1765051868149,-245.75631686,0.00016986,2]
[396564146,1765051868159,-504.89,0.00016986,2]
[396564147,1765051868169,-544.11,0.00016986,2]
[396564148,1765051868178,-500.0,0.00016986,2]
[396564149,1765051868188,-500.0,0.00016986,2]
[396564150,1765051868198,-150.0,0.00016986,2]
[396564151,1765051868207,-500.0,0.00016986,2]
[396564152,1765051868217,-500.0,0.00016986,2]
[396564153,1765051868227,-500.0,0.00016986,2]
[396564154,1765051868236,-500.0,0.00016986,2]
[396564155,1765051868246,-2593.13,0.00016986,2]
[396564156,1765051868256,-500.0,0.00016986,2]
[396564157,1765051868266,-500.0,0.00016986,2]
[396564158,1765051868277,-500.0,0.00016986,2]
[396564159,1765051868286,-500.0,0.00016986,2]
[396564160,1765051868296,-1010.19,0.00016986,2]
[396564161,1765051868306,-2104.23,0.00016986,2]
[396564162,1765051868316,-8198.51,0.00016986,2]
[396564163,1765051868326,-500.0,0.00016986,2]
[396564164,1765051868336,-2598.48,0.00016986,2]
[396564165,1765051868346,-500.0,0.00016986,2]
[396564166,1765051868356,-150.0,0.00016986,2]
[396564167,1765051868366,-1464.71,0.00016986,2]
[396564168,1765051868375,-500.0,0.00016986,2]
[396564169,1765051868387,-500.0,0.00016986,2]
[396564170,1765051868397,-1000.0,0.00016986,2]
[396564171,1765051868407,-500.0,0.00016986,2]
[396564172,1765051868417,-500.0,0.00016986,2]
[396564173,1765051868427,-500.0,0.00016986,2]
[396564174,1765051868437,-175.112971,0.00016986,2]
[396564175,1765051868447,-206.71466343,0.00016986,2]
[396564176,1765051868456,-500.0,0.00016986,2]
[396564177,1765051868467,-175.112971,0.00016986,2]
[396564178,1765051868477,-175.112971,0.00016986,2]
[396564179,1765051868487,-7601.36,0.00016986,2]
[396564180,1765051868496,-500.0,0.00016986,2]
[396564181,1765051868506,-500.0,0.00016986,2]
[396564182,1765051868516,-3241.36,0.00016986,2]
[396564183,1765051868527,-175.112979,0.00016986,2]
[396564184,1765051868537,-500.0,0.00016986,2]
[396564185,1765051868546,-1946.95,0.00016986,2]
[396564186,1765051868556,-950.12,0.00016986,2]
[396564187,1765051868566,-500.0,0.00016986,2]
[396564188,1765051868575,-500.0,0.00016986,2]
[396564189,1765051868586,-500.0,0.00016986,2]
[396564190,1765051868596,-500.0,0.00016986,2]
[396564191,1765051868609,-540.3,0.00016986,2]
[396564192,1765051868620,-500.0,0.00016986,2]
[396564193,1765051868630,-1139.33,0.00016986,2]
[396564194,1765051868640,-500.0,0.00016986,2]
[396564195,1765051868650,-500.0,0.00016986,2]
[396564196,1765051868660,-705.41,0.00016986,2]
[396564197,1765051868670,-2135.25,0.00016986,2]
[396564198,1765051868680,-517.78,0.00016986,2]
[396564199,1765051868690,-500.0,0.00016986,2]
[396564200,1765051868700,-500.0,0.00016986,2]
[396564201,1765051868711,-2211.78,0.00016986,2]
[396564202,1765051868721,-151.0,0.00016986,2]
[396564203,1765051868730,-418.98496899,0.00016986,2]
[396564204,1765051868740,-500.0,0.00016986,2]
[396564205,1765051868751,-500.0,0.00016986,2]
[396564206,1765051868761,-561.14,0.00016986,2]
[396564207,1765051868771,-500.0,0.00016986,2]
[396564208,1765051868781,-1599.21,0.00016986,2]
[396564209,1765051868870,-2172.7,0.00016986,2]
[396564210,1765051868881,-500.0,0.00016986,2]
[396564211,1765051868891,-500.0,0.00016986,2]
[396564212,1765051868901,-3129.84,0.00016986,2]
[396564213,1765051868911,-2429.35,0.00016986,2]
[396564214,1765051868920,-500.0,0.00016986,2]
[396564215,1765051868930,-500.0,0.00016986,2]
[396564216,1765051868940,-500.0,0.00016986,2]
[396564217,1765051868950,-500.0,0.00016986,2]
[396564218,1765051868960,-2042.67,0.00016986,2]
[396564219,1765051868970,-500.0,0.00016986,2]
[396564220,1765051868980,-500.0,0.00016986,2]
[396564221,1765051868990,-1489.53,0.00016986,2]
[396564222,1765051869000,-932.37,0.00016986,2]
[396564223,1765051869010,-500.0,0.00016986,2]
[396564224,1765051869020,-500.0,0.00016986,2]
[396564225,1765051869030,-500.0,0.00016986,2]
[396564226,1765051869039,-539.04,0.00016986,2]
[396564227,1765051869049,-596.08,0.00016986,2]
[396564228,1765051869059,-500.0,0.00016986,2]
[396564229,1765051869069,-2132.64,0.00016986,2]
[396564230,1765051869079,-152.211686,0.00016986,2]
[396564231,1765051869088,-152.211686,0.00016986,2]
[396564232,1765051869098,-2453.25,0.00016986,2]
[396564233,1765051869107,-2365.08,0.00016986,2]
[396564234,1765051869117,-152.211686,0.00016986,2]
[396564235,1765051869127,-339.540834,0.00016986,2]
[396564236,1765051869136,-258.29579753,0.00016986,2]
[396564237,1765051869145,-152.211679,0.00016986,2]
[396564238,1765051869154,-339.540834,0.00016986,2]
[396564239,1765051869163,-339.540834,0.00016986,2]
[396564240,1765051869173,-2190.55,0.00016986,2]
[396564241,1765051869182,-500.0,0.00016986,2]
[396564242,1765051869191,-2263.0,0.00016986,2]
[396564243,1765051869201,-339.540828,0.00016986,2]
[396564244,1765051869211,-620.23,0.00016986,2]
[396564245,1765051869220,-500.0,0.00016986,2]
[396564246,1765051869229,-605.47,0.00016986,2]
[396564247,1765051869239,-508.04279,0.00016986,2]
[396564248,1765051869248,-2011.03,0.00016986,2]
[396564249,1765051869257,-508.04279,0.00016986,2]
[396564250,1765051869266,-551.63,0.00016986,2]
[396564251,1765051869276,-151.0,0.00016986,2]
[396564252,1765051869287,-508.04279,0.00016986,2]
[396564253,1765051869296,-151.0,0.00016986,2]
[396564254,1765051869307,-508.042798,0.00016986,2]
[396564255,1765051869316,-500.0,0.00016986,2]
[396564256,1765051869327,-500.0,0.00016986,2]
[396564257,1765051869337,-1630.36,0.00016986,2]
[396564258,1765051869347,-681.9,0.00016986,2]
[396564259,1765051869357,-2229.84,0.00016986,2]
[396564260,1765051869367,-574.59,0.00016986,2]
[396564261,1765051869377,-500.0,0.00016986,2]
[396564262,1765051869386,-151.0,0.00016986,2]
[396564263,1765051869396,-288.086986,0.00016986,2]
[396564264,1765051869405,-1191.99,0.00016986,2]
[396564265,1765051869415,-695.61,0.00016986,2]
[396564266,1765051869424,-500.0,0.00016986,2]
[396564267,1765051869434,-500.0,0.00016986,2]
[396564268,1765051869443,-500.0,0.00016986,2]
[396564269,1765051869453,-500.0,0.00016986,2]
[396564270,1765051869462,-151.0,0.00016986,2]
[396564271,1765051869471,-1736.45,0.00016986,2]
[396564272,1765051869480,-500.0,0.00016986,2]
[396564273,1765051869490,-1671.52,0.00016986,2]
[396564274,1765051869499,-2762.72,0.00016986,2]
[396564275,1765051869509,-524.22,0.00016986,2]
[396564276,1765051869518,-500.0,0.00016986,2]
[396564277,1765051869528,-500.0,0.00016986,2]
[396564278,1765051869537,-500.0,0.00016986,2]
[396564279,1765051869546,-2067.72,0.00016986,2]
[396564280,1765051869556,-2071.31,0.00016986,2]
[396564281,1765051869565,-500.0,0.00016986,2]
[396564282,1765051869574,-500.0,0.00016986,2]
[396564283,1765051869584,-500.0,0.00016986,2]
[396564284,1765051869593,-500.0,0.00016986,2]
[396564285,1765051869603,-2104.11,0.00016986,2]
[396564286,1765051869616,-1699.28,0.00016986,2]
[396564287,1765051869625,-500.0,0.00016986,2]
[396564288,1765051869634,-500.0,0.00016986,2]
[396564289,1765051869643,-3071.89,0.00016986,2]
[396564290,1765051869653,-500.0,0.00016986,2]
[396564291,1765051869662,-1992.26,0.00016986,2]
[396564292,1765051869672,-500.0,0.00016986,2]
[396564293,1765051869681,-1808.96,0.00016986,2]
[396564294,1765051869690,-500.0,0.00016986,2]
[396564295,1765051869699,-956.32,0.00016986,2]
[396564296,1765051869708,-1653.58,0.00016986,2]
[396564297,1765051869718,-990.72,0.00016986,2]
[396564298,1765051869727,-500.0,0.00016986,2]
[396564299,1765051869736,-2188.06,0.00016986,2]
[396564300,1765051870028,-595.01,0.00016986,2]
[396564301,1765051870045,-500.0,0.00016986,2]
[396564302,1765051870055,-500.0,0.00016986,2]
[396564303,1765051870065,-500.0,0.00016986,2]
[396564304,1765051870077,-1087.48,0.00016986,2]
[396564305,1765051870086,-151.0,0.00016986,2]
[396564306,1765051870095,-500.0,0.00016986,2]
[396564307,1765051870104,-151.0,0.00016986,2]
[396564308,1765051870115,-2221.55,0.00016986,2]
[396564309,1765051870124,-150.0,0.00016986,2]
[396564310,1765051870134,-686.69,0.00016986,2]
[396564311,1765051870143,-500.0,0.00016986,2]
[396564312,1765051870152,-654.35,0.00016986,2]
[396564313,1765051870162,-151.0,0.00016986,2]
[396564314,1765051870172,-500.0,0.00016986,2]
[396564315,1765051870182,-500.0,0.00016986,2]
[396564316,1765051870191,-809.68,0.00016986,2]
[396564317,1765051870200,-500.0,0.00016986,2]
[396564318,1765051870210,-500.0,0.00016986,2]
[396564319,1765051870219,-2089.55,0.00016986,2]
[396564320,1765051870228,-500.0,0.00016986,2]
[396564321,1765051870238,-500.0,0.00016986,2]
[396564322,1765051870246,-933.19,0.00016986,2]
[396564323,1765051870256,-500.0,0.00016986,2]
[396564324,1765051870265,-500.0,0.00016986,2]
[396564325,1765051870275,-285.87777108,0.00016986,2]
[396564326,1765051870284,-780.37,0.00016986,2]
[396564327,1765051870293,-989.17,0.00016986,2]
[396564328,1765051870303,-500.0,0.00016986,2]
[396564329,1765051870313,-150.0,0.00016986,2]
[396564330,1765051870323,-279.93516644,0.00016986,2]
[396564331,1765051870332,-150.0,0.00016986,2]
[396564332,1765051870342,-150.0,0.00016986,2]
[396564333,1765051870351,-150.0,0.00016986,2]
[396564334,1765051870361,-150.0,0.00016986,2]
[396564335,1765051870370,-518.15223418,0.00016986,2]
[396564336,1765051870380,-332.7628723,0.0001699,2]